bitfinex/quotes_ETHUSD_20251125
["timestamp","ask_amount","ask_price","bid_price","bid_amount"]
[1764082950838,6.95797382,2874.4,2873.1,0.1877]
[1764082951044,3.70998691,2874.4,2874.1,0.1877]
[1764082951262,7.18897382,2874.4,2873.2,0.4662]
[1764082951473,0.72559411,2874.3,2873.2,0.4662]
[1764082951680,0.72559411,2874.3,2873.1,0.1877]
[1764082951681,0.72559411,2873.5,2873.1,0.1877]
[1764082951982,0.636504,2873.4,2872.5,0.4662]
[1764082952275,0.405504,2873.1,2872.5,0.4662]
[1764082952484,6.96160672,2872.9,2872.5,0.4662]
[1764082952983,3.48080336,2872.9,2872.5,0.4662]
[1764082953193,6.96160672,2872.9,2872.5,0.4662]
[1764082953393,6.96160672,2872.9,2872.0,0.1877]
[1764082953394,6.96160672,2872.9,2872.2,0.4662]
[1764082954060,3.47983435,2873.7,2872.2,0.4662]
[1764082954250,0.95659411,2873.6,2873.1,0.1877]
[1764082954451,0.72559411,2873.4,2873.1,0.1877]
[1764082954880,4.43659664,2873.6,2873.1,0.6539]
[1764082955083,0.231,2873.6,2873.1,0.6539]
[1764082955260,0.72559411,2873.5,2873.2,0.4662]
[1764082955458,0.72559411,2873.5,2873.1,0.1877]
[1764082955780,0.72559411,2873.5,2872.7,0.4662]
[1764082955956,0.72559411,2873.5,2873.1,0.1877]
[1764082956156,0.72559411,2873.5,2872.7,0.4662]
[1764082956458,0.72559411,2873.3,2872.7,0.4662]
[1764082957586,0.1461,2873.8,2872.7,3.94722802]
[1764082957587,0.231,2873.2,2872.7,3.94722802]
[1764082957764,0.231,2873.5,2873.2,0.1877]
[1764082958081,0.2277228,2873.5,2873.2,0.1877]
[1764082958452,3.48019767,2873.4,2873.1,0.1877]
[1764082958648,3.70783475,2873.5,2873.1,0.1877]
[1764082958946,4.20494416,2874.1,2873.1,3.66826106]
[1764082959182,0.90301185,2874.4,2873.1,3.76262106]
[1764082959488,0.90301185,2875.0,2874.3,0.1877]
[1764082959690,0.71744097,2874.9,2874.3,0.1877]
[1764082959990,0.71744097,2874.9,2873.2,0.72559411]
[1764082959991,0.71742896,2874.8,2874.0,0.1877]
[1764082960167,0.95659411,2874.7,2874.0,0.1877]
[1764082960350,1.44302307,2874.6,2874.0,0.1877]
[1764082960546,7.67516072,2874.5,2874.0,0.1877]
[1764082960791,0.90301185,2874.9,2874.0,0.1877]
[1764082960792,2.39334459,2876.1,2874.9,8.475729]
[1764082960999,8.05072618,2877.6,2875.4,3.10123099]
[1764082961000,0.89789519,2876.5,2875.4,3.10123099]
[1764082961164,5.18270161,2876.0,2874.9,0.231]
[1764082961481,1.87134951,2876.2,2874.6,0.231]
[1764082961682,0.72559411,2876.6,2874.7,0.405504]
[1764082961882,0.4871,2876.6,2874.5,0.231]
[1764082962184,2.00203,2876.4,2874.4,0.231]
[1764082962383,0.405504,2876.2,2874.4,0.231]
[1764082962584,0.405504,2875.9,2874.4,3.47894699]
[1764082962789,0.405504,2875.7,2873.5,4.13097175]
[1764082962961,0.405504,2875.7,2873.7,0.231]
[1764082963163,0.405504,2875.7,2874.0,3.6671374]
[1764082963391,0.405504,2875.7,2874.0,7.14660852]
[1764082963573,0.4161,2875.8,2874.0,7.14660852]
[1764082963884,0.4161,2875.8,2874.0,7.24096852]
[1764082964089,0.002,2877.3,2874.8,0.405504]
[1764082964314,0.002,2877.3,2877.2,4.53647575]
[1764082964491,0.002,2877.3,2877.2,7.52647368]
[1764082964787,0.002,2877.3,2876.9,0.72559411]
[1764082964997,0.002,2877.3,2876.9,7.67748012]
[1764082965488,0.002,2877.3,2877.0,0.405504]
[1764082966577,0.002,2877.3,2876.9,6.95188601]
[1764082967955,0.002,2877.3,2877.0,4.12141358]
[1764082968189,0.0012,2877.3,2877.2,0.405504]
[1764082968532,0.0012,2877.3,2877.2,0.233]
[1764082968829,0.0012,2877.3,2877.2,4.11410527]
[1764082968994,0.0012,2877.3,2877.2,3.47560127]
[1764082969752,0.0012,2877.3,2876.4,0.233]
[1764082969892,0.0012,2877.3,2876.5,0.233]
[1764082970093,0.0012,2877.3,2875.9,3.71590958]
[1764082970326,0.0012,2877.3,2876.3,0.09436]
[1764082970541,0.0012,2877.3,2875.5,6.95521772]
[1764082970835,0.0012,2877.3,2874.0,2.40781819]
[1764082970836,0.72559411,2877.0,2875.2,0.233]
[1764082970992,0.0012,2877.3,2876.6,3.71590958]
[1764082971188,0.0012,2877.3,2877.2,1.13109811]
[1764082971423,0.0012,2877.3,2877.2,1.22545811]
[1764082971633,0.0012,2877.3,2877.2,0.638504]
[1764082971816,0.0012,2877.3,2876.7,0.233]
[1764082972193,0.0012,2877.3,2876.8,0.405504]
[1764082972514,0.0012,2877.3,2876.8,0.499864]
[1764082972718,0.0012,2877.3,2877.2,0.405504]
[1764082973116,0.0012,2877.3,2877.2,0.09436]
[1764082973317,0.0012,2877.3,2877.2,0.405504]
[1764082973717,0.0012,2877.3,2877.2,0.638504]
[1764082974104,0.0012,2877.3,2877.2,0.405504]
[1764082974725,0.0012,2877.3,2877.2,3.88110527]
[1764082975219,0.0012,2877.3,2877.2,4.11410527]
[1764082977536,0.0012,2877.3,2877.2,3.88110527]
[1764082977699,0.0012,2877.3,2877.2,4.11410527]
[1764082978930,0.0012,2877.3,2877.2,3.88110527]
[1764082979130,0.0012,2877.3,2877.2,0.405504]
[1764082979631,0.0012,2877.3,2876.6,0.001]
[1764082979832,0.0012,2877.3,2876.7,3.47620537]
[1764082980213,0.0012,2877.3,2876.6,0.001]
[1764082980700,4.40089948,2876.7,2876.6,0.001]
[1764082980899,0.72559411,2876.6,2876.4,0.001]
[1764082981107,0.1991,2876.7,2876.4,0.001]
[1764082981516,0.4941,2876.6,2876.4,0.001]
[1764082982031,0.72559411,2876.8,2876.4,0.001]
[1764082982532,3.67510256,2876.9,2876.4,0.001]
[1764082982733,3.47620537,2876.7,2876.4,0.001]
[1764082982900,0.72559411,2876.7,2876.4,0.001]
[1764082983129,0.4941,2876.6,2876.4,0.001]
[1764082983940,0.4941,2876.6,2874.9,0.0016]
[1764082984136,0.232,2876.5,2874.9,0.0016]
[1764082984325,0.232,2876.5,2874.9,3.47994696]
[1764082984526,0.4941,2876.4,2874.9,6.95832881]
[1764082984838,0.4941,2876.4,2875.0,0.0347826]
[1764082984839,0.72559411,2876.2,2875.0,0.0347826]
[1764082985040,0.72559411,2876.2,2875.0,0.0026]
[1764082985220,0.72559411,2876.2,2875.1,0.0026]
[1764082985544,0.72559411,2876.2,2875.1,0.09696]
[1764082986041,0.72559411,2876.2,2875.2,0.405504]
[1764082986338,0.72559411,2876.2,2874.9,0.405504]
[1764082986339,0.4941,2876.1,2874.9,0.405504]
[1764082986717,0.4941,2876.1,2874.7,3.47862385]
[1764082986939,0.4941,2876.1,2873.8,3.48231327]
[1764082986940,0.72559411,2875.9,2873.8,3.48231327]
[1764082987128,0.1991,2874.8,2873.7,6.95962018]
[1764082987330,0.1991,2874.8,2873.7,3.47978583]
[1764082987331,0.232,2874.7,2873.7,3.47978583]
[1764082987513,0.6932,2874.8,2873.4,0.0026]
[1764082987709,0.232,2874.7,2873.4,3.57715767]
[1764082987910,0.232,2874.7,2873.5,0.405504]
[1764082988111,0.232,2874.7,2873.4,3.48019767]
[1764082988339,0.4941,2874.6,2873.3,3.48027909]
[1764082988836,0.72559411,2874.4,2873.0,0.72559411]
[1764082989340,0.4941,2874.3,2873.0,0.72559411]
[1764082989542,0.4941,2874.3,2872.9,7.05852698]
[1764082989543,0.72559411,2874.4,2873.1,0.0026]
[1764082989741,3.47870681,2874.7,2873.3,0.405504]
[1764082989918,0.72559411,2874.6,2873.5,0.09436]
[1764082990118,0.232,2874.7,2873.8,0.09436]
[1764082990325,0.1991,2875.0,2873.9,0.405504]
[1764082990670,0.1991,2875.3,2873.9,0.408104]
[1764082990850,0.232,2875.3,2873.9,1.13109811]
[1764082991138,0.4941,2875.2,2874.0,0.405504]
[1764082991953,0.232,2875.2,2874.0,0.408104]
[1764082992149,0.2312,2875.2,2874.0,0.408104]
[1764082992527,0.7253,2875.2,2874.0,0.405504]
[1764082993031,3.47813989,2875.1,2874.1,3.47935005]
[1764082993231,6.95627978,2875.1,2874.1,6.9587001]
[1764082993626,7.45037978,2875.1,2874.0,3.47941324]
[1764082993949,1.21969411,2875.0,2874.1,0.405504]
[1764082994258,1.21969411,2875.0,2874.0,0.405504]
[1764082994487,0.4941,2874.9,2873.9,0.405504]
[1764082994666,0.4941,2874.9,2873.5,0.0026]
[1764082994868,0.1991,2873.6,2872.6,0.09796]
[1764082995048,3.48007656,2873.5,2872.6,0.001]
[1764082995458,0.1991,2873.6,2873.5,0.001]
[1764082995658,3.67905545,2873.6,2873.5,0.001]
[1764082995860,4.17315545,2873.6,2873.5,0.001]
[1764082996035,0.1991,2873.9,2873.5,0.001]
[1764082996249,0.232,2873.8,2873.5,0.001]
[1764082996537,0.4941,2874.5,2873.5,0.001]
[1764082996740,0.232,2874.4,2873.5,0.0036]
[1764082997369,1.21969411,2874.3,2873.5,0.001]
[1764082997757,0.4941,2874.2,2873.5,0.001]
[1764082999139,0.72559411,2874.0,2873.5,0.001]
[1764082999338,0.231,2873.9,2873.5,0.001]
[1764082999741,0.4941,2873.8,2873.5,0.001]
[1764083001072,3.47983435,2873.7,2873.5,0.001]
[1764083001273,0.72559411,2873.7,2873.5,0.001]
[1764083001475,0.72559411,2873.8,2873.5,0.001]
[1764083001642,1.20949411,2873.8,2873.5,0.001]
[1764083001838,0.4839,2873.7,2873.5,0.001]
[1764083002760,0.4839,2873.7,2873.2,0.001]
[1764083003144,0.72559411,2873.5,2873.2,0.001]
[1764083003346,0.231,2873.4,2873.2,0.001]
[1764083003941,0.7149,2873.4,2873.2,0.001]
[1764083004146,0.231,2873.4,2873.2,0.001]
[1764083004355,0.4839,2874.4,2873.2,0.001]
[1764083004574,0.231,2874.3,2873.2,0.001]
[1764083005061,0.72559411,2874.1,2873.2,0.001]
[1764083005294,0.231,2874.3,2873.2,0.410104]
[1764083005472,0.231,2874.3,2873.4,0.09436]
[1764083005777,0.231,2874.3,2873.5,0.0036]
[1764083006077,0.231,2874.3,2873.2,0.001]
[1764083006078,7.18927397,2874.3,2873.2,0.001]
[1764083006393,0.4839,2875.2,2873.3,0.0036]
[1764083006591,0.231,2874.8,2873.9,0.09436]
[1764083006894,0.231,2874.8,2873.3,0.409104]
[1764083007056,3.47874486,2874.6,2873.4,0.0036]
[1764083007260,3.47874486,2874.6,2873.4,0.409104]
[1764083007590,0.231,2874.7,2873.9,0.405504]
[1764083007761,0.231,2874.7,2873.9,0.503464]
[1764083008167,0.231,2874.7,2874.0,0.0036]
[1764083008364,1.20949411,2875.4,2874.0,0.09796]
[1764083008575,0.7149,2875.3,2873.4,0.405504]
[1764083008749,0.7149,2875.3,2873.6,0.09796]
[1764083008945,0.4839,2875.2,2873.7,0.405504]
[1764083009246,0.4839,2875.2,2872.8,4.37695232]
[1764083009247,0.1888,2871.9,2870.9,5.62583561]
[1764083009491,0.1888,2871.9,2870.3,0.19278144]
[1764083009492,6.72559411,2870.9,2870.3,0.19278144]
[1764083009690,6.72559411,2870.5,2869.1,0.1944]
[1764083009984,1.20252289,2869.4,2869.1,0.1944]
[1764083010188,0.72137972,2869.3,2869.1,0.28876]
[1764083010349,0.72137972,2869.2,2869.1,3.77415707]
[1764083010751,0.72137972,2869.2,2869.1,0.1944]
[1764083010966,0.72137972,2869.2,2869.1,0.28876]
[1764083011164,0.72137972,2869.2,2869.1,0.1944]
[1764083011485,0.72137972,2869.2,2869.1,4.17911354]
[1764083011673,0.72137972,2869.2,2869.1,0.78806]
[1764083011874,0.72137972,2869.2,2869.1,0.6937]
[1764083012074,1.20252289,2869.6,2869.1,4.99906765]
[1764083012382,1.20252289,2869.6,2869.3,0.09436]
[1764083012584,1.20252289,2869.7,2869.4,0.4993]
[1764083013391,7.20252289,2869.5,2869.4,0.4993]
[1764083013699,1.20252289,2869.5,2869.4,0.4993]
[1764083013862,1.20252289,2869.5,2869.1,0.1944]
[1764083014068,1.43652289,2869.5,2869.1,0.1944]
[1764083014269,1.20252289,2869.2,2868.8,0.4993]
[1764083014573,1.1931574,2869.0,2868.4,0.4993]
[1764083014752,1.1931574,2868.8,2868.4,0.4993]
[1764083015150,1.1931574,2868.7,2868.3,0.1944]
[1764083015355,4.67908025,2868.7,2868.0,0.1364]
[1764083015593,1.1931574,2868.5,2868.0,0.1364]
[1764083015789,1.1931574,2868.2,2868.0,0.1364]
[1764083016087,1.1931574,2868.1,2867.5,0.4993]
[1764083016288,1.1923574,2868.3,2867.5,0.4993]
[1764083016586,6.0,2868.2,2867.5,0.4993]
[1764083017181,6.0,2868.2,2868.1,0.1944]
[1764083017376,6.0,2868.6,2868.1,3.68102877]
[1764083017586,6.0,2868.4,2867.0,3.68236552]
[1764083017762,6.0,2868.4,2867.3,0.4993]
[1764083017959,0.72559411,2868.1,2867.0,0.1944]
[1764083018312,6.0,2868.0,2867.0,0.6937]
[1764083018467,0.1295,2867.1,2865.6,0.1944]
[1764083018673,6.0,2866.8,2865.6,0.6937]
[1764083019070,6.0,2866.6,2865.7,0.4993]
[1764083019271,6.0,2866.6,2865.7,7.4783976]
[1764083019272,0.234,2866.6,2865.7,7.4783976]
[1764083019604,6.0,2866.9,2866.1,0.09436]
[1764083019759,6.0,2867.3,2865.9,0.234]
[1764083019959,6.0,2867.3,2866.2,0.405504]
[1764083020486,6.0,2867.3,2866.4,0.405504]
[1764083020861,6.0,2867.3,2866.5,0.4993]
[1764083021061,6.0,2867.8,2867.2,0.1944]
[1764083021270,3.4871151,2867.7,2866.5,3.98784969]
[1764083021470,6.0,2867.6,2866.1,0.4993]
[1764083021671,6.0,2867.4,2866.1,0.4993]
[1764083022298,6.0,2867.2,2865.5,0.1944]
[1764083022472,0.72559411,2866.9,2865.8,0.4993]
[1764083022670,1.11399411,2867.3,2865.9,0.03489305]
[1764083022671,6.0,2866.8,2865.9,0.03489305]
[1764083022862,6.0,2867.2,2866.0,0.09436]
[1764083023058,6.0,2867.2,2865.8,0.4993]
[1764083023262,9.48775962,2867.2,2866.3,3.48881833]
[1764083023492,6.0,2867.1,2866.3,3.98811833]
[1764083023994,6.0,2867.1,2866.3,0.4993]
[1764083024197,6.0,2867.1,2866.2,3.48892522]
[1764083024378,6.0,2867.1,2866.0,3.48918353]
[1764083024599,6.0,2867.1,2866.0,6.97836706]
[1764083024913,6.0,2867.1,2866.1,0.4993]
[1764083025352,9.48776716,2867.2,2866.2,6.97788012]
[1764083025638,6.70723107,2867.1,2865.6,7.47864114]
[1764083025804,6.0,2867.0,2865.7,0.4993]
[1764083025993,6.0,2866.8,2865.7,0.4993]
[1764083026192,6.0,2866.8,2865.8,0.03489427]
[1764083026442,6.0,2866.8,2865.9,0.4993]
[1764083026592,6.0,2867.1,2865.9,0.4993]
[1764083026793,6.0,2867.1,2865.6,10.46901171]
[1764083026794,6.0,2867.1,2865.5,0.1944]
[1764083027035,6.0,2866.9,2865.5,7.67327286]
[1764083027231,6.0,2866.7,2865.5,4.18348051]
[1764083027432,3.48845321,2866.6,2865.6,0.4993]
[1764083027591,6.0,2866.6,2865.6,0.4993]
[1764083028134,6.0,2866.4,2865.6,0.4993]
[1764083028497,9.48833153,2866.7,2865.6,0.4993]
[1764083028828,6.0,2866.6,2865.6,0.4993]
[1764083029128,6.0,2866.6,2865.5,3.68418051]
[1764083029329,6.0,2866.4,2865.3,3.49003594]
[1764083029531,6.0,2866.2,2865.2,3.98940661]
[1764083029740,0.1295,2865.3,2865.2,0.72559411]
[1764083030041,0.1295,2865.3,2863.4,0.4993]
[1764083030042,6.0,2865.2,2863.4,0.4993]
[1764083030205,6.0,2865.0,2863.0,0.4915]
[1764083030529,6.0,2865.0,2862.1,0.1944]
[1764083030530,6.0,2864.8,2863.4,0.4915]
[1764083030739,6.0,2864.8,2862.1,4.57135232]
[1764083030740,6.0,2864.8,2863.7,0.4915]
[1764083031028,6.0,2865.7,2864.6,3.49088878]
[1764083031329,6.0,2865.5,2864.6,6.98177756]
[1764083031503,6.0,2865.6,2864.7,0.4915]
[1764083031830,0.235,2866.0,2864.7,0.4915]
[1764083032061,6.0,2865.9,2864.8,0.09436]
[1764083032341,6.0,2865.9,2864.9,0.4915]
[1764083032713,6.0,2865.9,2865.5,0.001]
[1764083033114,6.0,2866.2,2865.5,0.001]
[1764083033365,3.48906179,2866.1,2865.5,0.001]
[1764083033522,6.0,2866.2,2865.5,0.001]
[1764083033729,6.0,2866.1,2865.5,0.001]
[1764083033911,12.97789243,2866.2,2865.5,0.001]
[1764083034243,6.0,2866.1,2865.5,0.001]
[1764083034936,9.48894006,2866.2,2865.5,0.001]
[1764083035138,6.0,2866.1,2865.5,0.001]
[1764083035339,0.70674044,2866.0,2865.5,0.001]
[1764083035545,6.0,2865.9,2865.5,0.001]
[1764083035773,6.0,2866.2,2865.5,0.001]
[1764083035924,6.0,2866.0,2865.5,0.001]
[1764083036125,6.0,2866.1,2865.5,0.001]
[1764083036437,6.0,2865.9,2865.5,0.001]
[1764083036636,7.86445135,2866.2,2865.5,0.001]
[1764083036637,6.0,2866.1,2865.5,0.001]
[1764083036838,6.0,2865.9,2865.5,0.001]
[1764083037017,6.0,2866.1,2865.5,0.001]
[1764083037216,6.88655381,2865.9,2865.5,0.001]
[1764083037421,6.0,2865.7,2865.5,0.001]
[1764083037627,6.70794221,2865.6,2865.5,0.001]
[1764083038240,7.59449602,2865.6,2865.5,0.001]
[1764083039229,6.70794221,2865.6,2865.5,0.001]
[1764083039423,6.0,2865.5,2865.1,3.96997957]
[1764083039636,6.0,2865.5,2865.2,0.4797]
[1764083039637,0.70794221,2865.4,2865.2,0.4797]
[1764083039861,0.70794221,2865.3,2865.2,0.4797]
[1764083040559,0.70714221,2865.3,2865.2,0.4797]
[1764083040962,1.78990383,2865.8,2865.4,0.09436]
[1764083040963,0.89495192,2865.8,2865.4,0.09436]
[1764083041162,0.234,2866.4,2865.2,1.20529411]
[1764083041163,0.89495192,2866.1,2865.2,1.20529411]
[1764083041380,0.89495192,2865.8,2865.2,1.20529411]
[1764083041528,0.89495192,2865.7,2865.2,0.4797]
[1764083041728,0.89495192,2865.6,2864.8,0.1808]
[1764083042052,0.89495192,2865.4,2864.9,7.46068578]
[1764083042256,0.89495192,2865.3,2864.9,0.4797]
[1764083042460,0.89495192,2865.3,2864.8,0.1808]
[1764083042461,0.89495192,2865.0,2864.5,0.19485596]
[1764083042750,0.89495192,2865.0,2864.6,0.4797]
[1764083042929,0.89495192,2864.9,2864.5,0.19485596]
[1764083043129,0.234,2865.5,2864.5,0.19485596]
[1764083043130,0.89495192,2865.0,2864.5,3.6858653]
[1764083043439,0.89495192,2864.9,2864.7,3.49076692]
[1764083043641,0.89495192,2864.9,2864.6,3.72477828]
[1764083043841,0.89495192,2865.0,2864.6,3.49077828]
[1764083044042,0.89495192,2865.0,2864.6,7.46136706]
[1764083044354,0.89495192,2864.9,2864.7,0.51460766]
[1764083044557,0.89495192,2865.4,2864.8,0.234]
[1764083044850,0.89495192,2865.4,2864.7,1.20529411]
[1764083044851,1.02445192,2865.6,2864.7,1.20529411]
[1764083045036,0.89495192,2865.5,2864.8,0.234]
[1764083045235,0.89495192,2865.4,2864.8,0.234]
[1764083045431,0.89495192,2865.4,2864.9,6.98104644]
[1764083045760,0.89495192,2865.4,2864.9,10.47156966]
[1764083045960,0.89495192,2865.5,2865.0,0.4797]
[1764083046349,0.89495192,2865.4,2865.0,0.4797]
[1764083046552,0.89495192,2865.4,2864.9,3.49052322]
[1764083046753,0.89495192,2865.3,2864.5,0.67455596]
[1764083047066,0.89495192,2865.1,2864.6,0.7137]
[1764083047270,0.89495192,2865.4,2864.6,0.80806]
[1764083047563,0.89495192,2865.4,2864.9,0.72559411]
[1764083047765,0.89495192,2865.4,2864.7,0.234]
[1764083047932,0.89495192,2865.4,2864.5,0.19485596]
[1764083048135,0.89495192,2864.8,2864.5,0.19485596]
[1764083048335,0.89495192,2864.8,2864.5,3.68583617]
[1764083048336,0.89495192,2864.6,2864.5,3.68583617]
[1764083048567,0.89495192,2864.6,2864.5,3.6858666]
[1764083048938,0.89495192,2864.7,2864.5,3.6858666]
[1764083049136,0.89495192,2864.8,2864.5,3.6858666]
[1764083049340,0.89495192,2864.8,2864.5,7.17687724]
[1764083049544,0.89495192,2864.9,2864.6,0.4797]
[1764083049749,0.89495192,2865.0,2864.6,0.4797]
[1764083050080,0.89495192,2865.2,2864.6,0.4797]
[1764083050249,0.89495192,2865.2,2864.6,0.234]
[1764083050649,0.89495192,2865.2,2864.5,7.17687724]
[1764083050851,1.78990383,2864.6,2864.5,0.19485596]
[1764083051154,0.93660787,2864.6,2863.1,0.6741]
[1764083051365,0.90510394,2864.1,2863.3,0.72559411]
[1764083051549,2.40463703,2864.9,2863.2,7.21919138]
[1764083051550,0.90510394,2864.0,2863.4,0.03492351]
[1764083051749,0.90510394,2864.3,2863.3,1.20529411]
[1764083052063,0.1295,2863.3,2861.7,7.1741126]
[1764083052382,0.90510394,2862.9,2861.8,6.98860856]
[1764083052693,0.90510394,2862.2,2861.1,7.1756184]
[1764083052988,0.90510394,2861.8,2860.6,0.4797]
[1764083053191,0.90510394,2861.8,2860.0,0.4797]
[1764083053192,2.15173,2861.6,2860.0,0.4797]
[1764083053356,1.8625361,2861.5,2860.5,3.49587536]
[1764083053555,0.72343216,2861.4,2860.0,0.4797]
[1764083053888,0.72343216,2861.3,2860.2,3.49624405]
[1764083054070,0.72343216,2861.2,2860.5,3.49588603]
[1764083054249,0.3884,2861.3,2860.5,3.49588603]
[1764083054250,0.234,2861.1,2860.7,3.49560672]
[1764083054449,0.234,2861.1,2860.9,3.49539722]
[1764083054662,0.234,2861.1,2860.6,3.49576316]
[1764083054862,0.234,2861.1,2860.0,0.4797]
[1764083055073,0.234,2861.1,2860.7,3.49560375]
[1764083055409,0.234,2861.1,2860.0,0.4797]
[1764083055565,0.234,2861.1,2860.4,3.49593414]
[1764083055764,0.234,2861.1,2861.0,3.50079834]
[1764083056099,0.234,2861.1,2861.0,0.00551697]
[1764083056280,0.235,2861.7,2861.0,3.50079834]
[1764083056480,0.235,2861.7,2861.0,10.49135797]
[1764083056693,0.3884,2862.5,2861.1,0.4797]
[1764083056906,0.6234,2862.4,2861.0,3.50079834]
[1764083057403,0.6234,2862.4,2861.0,6.99607971]
[1764083057611,0.6234,2862.4,2861.1,0.72559411]
[1764083057789,0.235,2862.4,2861.1,1.20529411]
[1764083057990,0.235,2862.4,2861.2,0.665]
[1764083058177,7.22215734,2862.4,2861.2,0.665]
[1764083058377,7.22215734,2862.4,2861.0,3.50079834]
[1764083058378,0.3884,2862.3,2861.0,3.50079834]
[1764083058582,0.3884,2862.3,2861.0,6.99607971]
[1764083058779,4.41180255,2862.2,2861.0,3.50077302]
[1764083058979,4.41180255,2862.2,2861.0,0.00551697]
[1764083059178,0.235,2862.2,2861.1,7.4809184]
[1764083059401,0.5179,2862.1,2861.0,0.00551697]
[1764083059602,6.98812018,2862.0,2861.0,0.00551697]
[1764083059767,7.37652018,2862.0,2861.0,0.00551697]
[1764083059971,0.3884,2861.9,2861.0,0.00551697]
[1764083060502,1.50818826,2861.9,2861.0,0.00551697]
[1764083060700,0.3884,2861.9,2861.0,0.00551697]
[1764083061003,3.62344881,2862.1,2861.0,6.9960764]
[1764083061202,7.50579762,2862.1,2861.0,3.50079503]
[1764083061403,0.3884,2862.0,2861.0,0.00551697]
[1764083061605,0.1295,2862.1,2861.0,6.99598689]
[1764083061908,0.3884,2862.0,2861.0,0.00551697]
[1764083062083,0.3884,2862.0,2861.1,3.4951592]
[1764083062287,0.3884,2862.0,2861.0,0.00551697]
[1764083062595,3.64288372,2861.9,2861.0,0.00551697]
[1764083062996,0.3884,2861.8,2861.0,0.00551697]
[1764083063183,0.235,2861.7,2861.0,0.00551697]
[1764083063688,0.235,2861.7,2861.0,3.50072525]
[1764083064021,0.3884,2861.6,2861.0,0.00551697]
[1764083064323,0.235,2861.7,2861.0,0.00551697]
[1764083064476,3.72863507,2861.7,2861.0,3.50078478]
[1764083064803,3.72863798,2861.7,2861.0,3.50072286]
[1764083065010,0.2342,2861.7,2861.1,0.1823]
[1764083065575,3.72874215,2861.7,2861.1,0.1823]
[1764083065822,7.2232843,2861.7,2861.0,0.00551697]
[1764083066005,0.3884,2861.6,2861.0,0.00551697]
[1764083066207,7.2232843,2861.7,2861.0,0.00551697]
[1764083067006,3.72874215,2861.7,2861.0,0.00551697]
[1764083067193,0.2342,2861.7,2861.1,0.1823]
[1764083067394,0.1295,2862.1,2861.0,0.00551697]
[1764083067712,4.11746009,2862.0,2861.0,0.00551697]
[1764083067913,7.61155464,2862.0,2861.0,0.00551697]
[1764083068213,3.49332543,2862.7,2861.0,0.00551697]
[1764083068214,0.1295,2862.4,2861.1,0.6373]
[1764083068527,0.235,2862.3,2861.1,0.6373]
[1764083068805,0.5179,2863.3,2861.2,0.455]
[1764083069021,0.236,2863.2,2862.2,0.1823]
[1764083069178,0.1295,2864.0,2862.2,0.1823]
[1764083069376,1.33630526,2864.9,2863.1,0.1823]
[1764083069613,1.29350394,2865.8,2863.4,0.81995411]
[1764083069811,0.236,2865.7,2863.7,0.499864]
[1764083069998,0.236,2865.7,2864.2,0.09436]
[1764083070296,0.236,2865.7,2864.1,0.236]
[1764083070495,0.236,2865.7,2864.1,0.33036]
[1764083070694,4.59224731,2866.3,2864.1,0.33036]
[1764083070695,0.236,2866.0,2864.2,0.860504]
[1764083070918,0.236,2866.0,2864.3,0.691]
[1764083071092,0.236,2866.0,2864.4,0.236]
[1764083071419,1.03460394,2867.1,2865.9,0.1823]
[1764083071716,11.80345281,2867.0,2865.5,0.6373]
[1764083071882,0.71502149,2866.9,2865.5,0.6373]
[1764083072082,1.10342149,2866.9,2865.4,3.4899135]
[1764083072290,0.3884,2866.8,2865.4,3.4899135]
[1764083072501,0.3884,2866.8,2865.3,3.49003594]
[1764083072712,0.3884,2866.8,2865.4,0.72559411]
[1764083072913,7.21196023,2867.0,2865.4,1.18059411]
[1764083073113,0.71462758,2866.9,2865.4,0.455]
[1764083073342,3.72398309,2867.0,2865.5,0.455]
[1764083073615,3.48820985,2866.8,2865.2,0.1823]
[1764083073816,10.46462955,2866.8,2865.2,3.67241685]
[1764083074115,0.3884,2866.7,2865.2,0.1823]
[1764083074820,3.64288372,2866.6,2863.8,3.64288372]
[1764083075039,3.64288372,2866.6,2863.6,3.49208826]
[1764083075040,3.64288372,2866.1,2864.5,0.455]
[1764083075192,3.64288372,2866.1,2864.0,0.455]
[1764083075193,1.33860831,2866.0,2864.0,0.455]
[1764083075392,3.64288372,2865.6,2864.0,0.455]
[1764083075616,3.64288372,2865.6,2863.1,0.1823]
[1764083075617,10.46974242,2865.4,2863.5,0.455]
[1764083075819,3.64288372,2865.1,2863.5,0.455]
[1764083076024,0.236,2865.0,2863.1,0.1823]
[1764083076227,1.33828665,2865.0,2863.2,3.49255576]
[1764083076433,1.33828665,2865.0,2863.1,3.67499302]
[1764083076638,1.33828665,2865.0,2863.2,0.455]
[1764083076639,0.3884,2864.9,2863.2,0.455]
[1764083077626,6.98129014,2864.8,2863.3,6.98494742]
[1764083078097,3.49054275,2864.9,2863.4,1.36289411]
[1764083078300,0.236,2865.0,2863.5,0.09436]
[1764083078549,0.1295,2865.8,2863.5,0.455]
[1764083078702,0.235,2865.7,2863.5,0.455]
[1764083078903,0.235,2865.7,2863.6,0.236]
[1764083079130,0.3884,2865.6,2863.6,0.236]
[1764083079440,0.3884,2865.6,2863.7,0.455]
[1764083079730,17.60205312,2865.5,2863.8,3.49186395]
[1764083080035,0.3884,2865.4,2863.7,3.94695264]
[1764083080221,2.193214,2865.3,2863.7,3.94694257]
[1764083080420,0.95030444,2865.2,2863.5,3.49222978]
[1764083080608,3.64288372,2865.0,2863.4,3.67462242]
[1764083080811,4.03128372,2865.1,2863.4,0.1823]
[1764083081198,0.3884,2865.0,2863.4,0.1823]
[1764083081534,2.467912,2864.9,2863.4,3.67463349]
[1764083081736,10.47193521,2864.8,2863.4,7.16698523]
[1764083081901,0.235,2864.7,2863.4,7.62198523]